bitfinex-derivatives/quotes_BTCF0:USTF0_20250713
["timestamp","ask_amount","ask_price","bid_price","bid_amount"]
[1752370270966,0.50768485,117480.0,117470.0,0.9865476]
[1752370271166,0.35212902,117480.0,117470.0,0.9865476]
[1752370271362,0.75084171,117480.0,117470.0,1.13727583]
[1752370271566,0.60011348,117480.0,117470.0,1.13727583]
[1752370271767,0.73367432,117480.0,117470.0,0.75213]
[1752370272072,0.73367432,117480.0,117470.0,0.39133]
[1752370272267,0.73367432,117480.0,117470.0,0.3608]
[1752370272673,0.74903534,117480.0,117470.0,0.3608]
[1752370277473,0.76695072,117480.0,117470.0,0.31481142]
[1752370277972,0.75150969,117480.0,117470.0,0.31481142]
[1752370278973,0.1276543,117470.0,117450.0,0.40923]
[1752370279179,0.96650469,117460.0,117450.0,0.5616465]
[1752370279380,0.83369184,117460.0,117450.0,0.71237473]
[1752370280077,0.83369184,117460.0,117450.0,0.71337473]
[1752370280676,0.68296361,117460.0,117450.0,0.76160473]
[1752370281076,0.68296361,117460.0,117450.0,0.76360473]
[1752370281576,0.68296361,117460.0,117450.0,0.76160473]
[1752370281776,0.68296361,117460.0,117450.0,0.76360473]
[1752370281973,0.38940361,117460.0,117450.0,0.76560473]
[1752370282183,0.38940361,117460.0,117450.0,0.78210473]
[1752370282377,0.68308361,117460.0,117450.0,0.78210473]
[1752370283282,0.83381184,117460.0,117450.0,0.6313765]
[1752370283484,0.83381184,117460.0,117450.0,0.78210473]
[1752370285384,0.68308361,117460.0,117450.0,0.78210473]
[1752370295792,0.68308361,117460.0,117450.0,1.14290473]
[1752370296288,0.38940361,117460.0,117450.0,1.01028783]
[1752370296597,0.38940361,117460.0,117450.0,1.31174429]
[1752370297291,0.38940361,117460.0,117450.0,1.01028783]
[1752370297495,0.38940361,117460.0,117450.0,1.16101606]
[1752370298395,0.38940361,117460.0,117450.0,1.31174429]
[1752370298593,0.68536361,117460.0,117450.0,1.31174429]
[1752370305898,0.38940361,117460.0,117450.0,1.31174429]
[1752370306100,0.68592361,117460.0,117450.0,1.31174429]
[1752370315913,0.68592361,117460.0,117450.0,1.65174429]
[1752370316515,0.68592361,117460.0,117450.0,0.93014429]
[1752370316813,0.68592361,117460.0,117450.0,1.31174429]
[1752370317915,0.74712223,117460.0,117450.0,1.31174429]
[1752370318613,0.74712223,117460.0,117450.0,1.01028783]
[1752370318816,0.74712223,117460.0,117450.0,1.31174429]
[1752370320315,0.28039023,117460.0,117450.0,1.31174429]
[1752370320515,0.01791538,117460.0,117450.0,1.46247252]
[1752370320817,0.01791538,117460.0,117450.0,1.75787252]
[1752370321019,0.07736309,117470.0,117460.0,0.2025521]
[1752370321312,0.01616447,117470.0,117460.0,1.44412679]
[1752370321617,0.06119862,117480.0,117470.0,0.2280876]
[1752370321813,0.06119862,117480.0,117470.0,1.51602406]
[1752370322316,0.06119862,117480.0,117470.0,1.56602406]
[1752370323217,0.06119862,117480.0,117470.0,1.56702406]
[1752370323518,0.06119862,117480.0,117470.0,1.18702406]
[1752370323718,0.06119862,117480.0,117470.0,1.54702406]
[1752370324115,0.43613296,117490.0,117480.0,0.2280731]
[1752370324321,0.53338919,117490.0,117480.0,1.25032956]
[1752370325316,0.47219057,117490.0,117480.0,1.25032956]
[1752370325517,0.47219057,117490.0,117480.0,0.89032956]
[1752370326221,0.47231457,117490.0,117480.0,0.89032956]
[1752370327220,0.47331457,117490.0,117480.0,0.89032956]
[1752370327819,0.47431457,117490.0,117480.0,0.89032956]
[1752370330722,0.47431457,117490.0,117480.0,1.25112956]
[1752370333025,0.49124101,117490.0,117480.0,1.31926526]
[1752370334122,0.49124101,117490.0,117480.0,0.59766526]
[1752370334526,0.49124101,117490.0,117480.0,1.31926526]
[1752370334824,0.49124101,117490.0,117480.0,0.59766526]
[1752370335022,0.49124101,117490.0,117480.0,1.31926526]
[1752370336126,0.49124101,117490.0,117480.0,0.59766526]
[1752370336329,0.49124101,117490.0,117480.0,1.31926526]
[1752370337527,0.47431457,117490.0,117480.0,1.31926526]
[1752370342628,0.43177187,117490.0,117480.0,1.31926526]
[1752370342831,0.38922947,117490.0,117480.0,1.31926526]
[1752370343523,0.68358947,117490.0,117480.0,1.31926526]
[1752370345530,0.68258947,117490.0,117480.0,1.31926526]
[1752370345734,0.68358947,117490.0,117480.0,1.31926526]
[1752370353341,0.68358947,117490.0,117480.0,0.59766526]
[1752370353531,0.68358947,117490.0,117480.0,1.31926526]
[1752370356444,0.68358947,117490.0,117480.0,1.0178088]
[1752370356742,0.68358947,117490.0,117480.0,1.31926526]
[1752370357938,0.74478809,117490.0,117480.0,1.31926526]
[1752370361147,0.74478809,117490.0,117480.0,0.59766526]
[1752370361444,0.74478809,117490.0,117480.0,1.31926526]
[1752370363847,0.45042809,117490.0,117480.0,1.31926526]
[1752370364048,0.74390809,117490.0,117480.0,1.31926526]
[1752370365549,0.45042809,117490.0,117480.0,1.31926526]
[1752370365846,0.74382809,117490.0,117480.0,1.31926526]
[1752370366542,0.45042809,117490.0,117480.0,1.31926526]
[1752370366846,0.74374809,117490.0,117480.0,1.31926526]
[1752370367346,0.45042809,117490.0,117480.0,1.31926526]
[1752370367548,0.74366809,117490.0,117480.0,1.31926526]
[1752370367856,0.45042809,117490.0,117480.0,1.31926526]
[1752370368051,0.68242947,117490.0,117480.0,1.31926526]
[1752370372249,0.68242947,117490.0,117480.0,0.59766526]
[1752370372450,0.68242947,117490.0,117480.0,1.31926526]
[1752370380153,0.68242947,117490.0,117480.0,0.59766526]
[1752370380348,0.68242947,117490.0,117480.0,1.31926526]
[1752370382257,0.8331577,117490.0,117480.0,1.30334526]
[1752370383561,0.68242947,117490.0,117480.0,1.30334526]
[1752370385557,0.68242947,117490.0,117480.0,0.58174526]
[1752370385757,0.68242947,117490.0,117480.0,1.30334526]
[1752370388857,0.68242947,117490.0,117480.0,1.0018888]
[1752370389062,0.68242947,117490.0,117480.0,1.30334526]
[1752370392163,0.68242947,117490.0,117480.0,0.58174526]
[1752370392361,0.68242947,117490.0,117480.0,1.30334526]
[1752370393164,0.68242947,117490.0,117480.0,0.58174526]
[1752370393364,0.68242947,117490.0,117480.0,1.30334526]
[1752370395464,0.58517324,117490.0,117480.0,1.30334526]
[1752370395666,0.68242947,117490.0,117480.0,1.30334526]
[1752370397765,0.58517324,117490.0,117480.0,1.30334526]
[1752370397970,0.68242947,117490.0,117480.0,1.30334526]
[1752370403073,0.8331577,117490.0,117480.0,1.0018888]
[1752370403277,0.8331577,117490.0,117480.0,1.30334526]
[1752370404077,0.89435632,117490.0,117480.0,1.30334526]
[1752370407478,0.89435632,117490.0,117480.0,0.58174526]
[1752370407671,0.89435632,117490.0,117480.0,1.30334526]
[1752370408576,0.89435632,117490.0,117480.0,1.0018888]
[1752370408876,0.89435632,117490.0,117480.0,1.30334526]
[1752370411278,0.74362809,117490.0,117480.0,1.30334526]
[1752370414780,0.74362809,117490.0,117480.0,0.58174526]
[1752370414979,0.74362809,117490.0,117480.0,1.30334526]
[1752370416481,0.74362809,117490.0,117480.0,0.58174526]
[1752370416782,0.74362809,117490.0,117480.0,1.30334526]
[1752370419778,0.74362809,117490.0,117480.0,0.58174526]
[1752370419984,0.74362809,117490.0,117480.0,1.30334526]
[1752370420283,0.74362809,117490.0,117480.0,0.58174526]
[1752370420484,0.74362809,117490.0,117480.0,1.30334526]
[1752370423790,0.74362809,117490.0,117480.0,1.0018888]
[1752370423983,0.74362809,117490.0,117480.0,1.30334526]
[1752370427489,0.74362809,117490.0,117480.0,0.58174526]
[1752370427690,0.76059113,117490.0,117480.0,1.30334526]
[1752370430092,0.91131936,117490.0,117480.0,1.30334526]
[1752370431293,0.76059113,117490.0,117480.0,1.30334526]
[1752370433195,0.91131936,117490.0,117480.0,1.30334526]
[1752370436300,0.91131936,117490.0,117480.0,0.58174526]
[1752370436595,0.91131936,117490.0,117480.0,1.30334526]
[1752370436896,0.91131936,117490.0,117480.0,1.0018888]
[1752370437097,0.91131936,117490.0,117480.0,1.30334526]
[1752370438695,0.76059113,117490.0,117480.0,1.30334526]
[1752370438896,0.91131936,117490.0,117480.0,1.30334526]
[1752370439491,0.91131936,117490.0,117480.0,0.58174526]
[1752370439796,0.91131936,117490.0,117480.0,1.30334526]
[1752370440796,0.85012074,117490.0,117480.0,1.30334526]
[1752370442295,0.69939251,117490.0,117480.0,1.30334526]
[1752370444898,0.85012074,117490.0,117480.0,1.0018888]
[1752370445095,0.85012074,117490.0,117480.0,1.30334526]
[1752370445394,0.75286451,117490.0,117480.0,1.0018887]
[1752370445595,0.1701831,117480.0,117470.0,0.42093351]
[1752370445893,0.1701831,117480.0,117460.0,0.8827724]
[1752370445894,0.2180648,117470.0,117460.0,0.8827724]
[1752370446098,0.8452023,117470.0,117460.0,1.03350063]
[1752370448201,0.8452023,117470.0,117460.0,1.03450063]
[1752370448703,0.8452023,117470.0,117460.0,1.03650063]
[1752370449201,0.8452023,117470.0,117460.0,0.79530063]
[1752370451402,0.69447407,117470.0,117460.0,0.79530063]
[1752370451605,0.8452023,117470.0,117460.0,0.94602886]
[1752370451803,0.69447407,117470.0,117460.0,0.94602886]
[1752370452507,0.69498967,117470.0,117460.0,0.94602886]
[1752370454107,0.69498967,117470.0,117460.0,0.96252886]
[1752370456902,0.69498967,117470.0,117460.0,1.32332886]
[1752370457408,0.69498967,117470.0,117460.0,1.17260063]
[1752370458010,0.75618829,117470.0,117460.0,1.17260063]
[1752370459408,0.75618829,117470.0,117460.0,1.0053724]
[1752370459605,0.75618829,117470.0,117460.0,1.15610063]
[1752370466612,0.73870965,117470.0,117460.0,1.15610063]
[1752370466806,0.75647225,117470.0,117460.0,0.43450063]
[1752370467010,0.75647225,117470.0,117460.0,1.15610063]
[1752370468117,0.69527363,117470.0,117460.0,1.15610063]
[1752370469020,0.69527363,117470.0,117460.0,1.17260063]
[1752370475022,0.69509978,117470.0,117460.0,1.17260063]
[1752370475918,0.84582801,117470.0,117460.0,1.17260063]
[1752370478118,0.84582801,117470.0,117460.0,0.81180063]
[1752370478323,0.84582801,117470.0,117460.0,1.17260063]
[1752370479525,0.84582801,117470.0,117460.0,1.18852063]
[1752370479824,0.84582801,117470.0,117460.0,1.17260063]
[1752370480725,0.84582801,117470.0,117460.0,0.894812]
[1752370480924,0.84582801,117470.0,117460.0,0.7246]
[1752370481125,0.84582801,117470.0,117460.0,0.894812]
[1752370481725,0.90702663,117470.0,117460.0,0.894812]
[1752370483526,0.90702663,117470.0,117460.0,0.534012]
[1752370486427,0.90702663,117470.0,117460.0,0.3638]
[1752370486931,0.90702663,117470.0,117460.0,0.534012]
[1752370488135,0.84582801,117470.0,117460.0,0.534012]
[1752370488830,0.84582801,117470.0,117460.0,0.3638]
[1752370489731,0.90702663,117470.0,117460.0,0.3638]
[1752370490129,0.90702663,117470.0,117460.0,0.534012]
[1752370491830,0.84582801,117470.0,117460.0,0.534012]
[1752370495534,0.84582801,117470.0,117460.0,0.173212]
[1752370495734,0.84582801,117470.0,117460.0,0.534012]
[1752370499335,0.84582801,117470.0,117460.0,0.173212]
[1752370499532,0.84582801,117470.0,117460.0,0.534012]
[1752370499740,0.84582801,117470.0,117460.0,0.71021023]
[1752370501835,0.92246766,117470.0,117460.0,0.71021023]
[1752370506646,0.63026766,117470.0,117460.0,0.71021023]
[1752370506944,0.92238766,117470.0,117460.0,0.71021023]
[1752370507439,0.47953943,117470.0,117460.0,0.71021023]
[1752370507643,0.3822832,117470.0,117460.0,0.86093846]
[1752370507842,0.70381467,117470.0,117460.0,0.89335846]
[1752370508141,0.3958698,117470.0,117460.0,0.89335846]
[1752370508339,0.16503127,117470.0,117460.0,0.89335846]
[1752370508543,0.3258798,117470.0,117460.0,1.04408669]
[1752370508745,0.3258798,117470.0,117460.0,0.89335846]
[1752370510346,0.3258798,117470.0,117460.0,1.25415846]
[1752370513548,0.3712098,117470.0,117460.0,1.25415846]
[1752370516451,0.0790898,117470.0,117460.0,1.25415846]
[1752370522265,0.0337598,117470.0,117460.0,1.40488669]
[1752370524558,0.0337598,117470.0,117460.0,1.25415846]
[1752370525964,0.0337598,117470.0,117460.0,0.952702]
[1752370526164,0.0337598,117470.0,117460.0,1.25415846]
[1752370532571,0.2039574,117470.0,117460.0,1.25415846]
[1752370532769,0.2039574,117470.0,117460.0,1.54615846]
[1752370532972,0.2492874,117470.0,117460.0,1.54615846]
[1752370533575,0.0790898,117470.0,117460.0,1.54615846]
[1752370537175,0.0790898,117470.0,117460.0,0.82455846]
[1752370537376,0.0790898,117470.0,117460.0,1.54615846]
[1752370541479,0.0790898,117470.0,117460.0,0.82455846]
[1752370541780,0.0790898,117470.0,117460.0,1.54615846]
[1752370551883,0.0790898,117470.0,117460.0,0.82455846]
[1752370552090,0.17634603,117470.0,117460.0,1.54615846]
[1752370553190,0.17634603,117470.0,117460.0,0.82455846]
[1752370553390,0.17634603,117470.0,117460.0,1.54615846]
[1752370557587,0.19962603,117470.0,117460.0,1.54615846]
[1752370560793,0.19940584,117470.0,117460.0,1.54615846]
[1752370566298,0.18340864,117470.0,117460.0,1.54615846]
[1752370571419,0.18340864,117470.0,117460.0,0.82455846]
[1752370571607,0.18340864,117470.0,117460.0,1.54615846]
[1752370574318,0.00162241,117470.0,117460.0,1.93808669]
[1752370574512,0.201896,117510.0,117500.0,0.2268042]
[1752370574712,0.03175,117510.0,117500.0,0.93479066]
[1752370575018,0.09725623,117510.0,117500.0,1.08551889]
[1752370575210,0.09725623,117510.0,117500.0,0.93479066]
[1752370575411,0.03375,117530.0,117520.0,0.2278552]
[1752370575723,0.03375,117530.0,117520.0,1.58372118]
[1752370575913,0.002,117530.0,117520.0,1.28492118]
[1752370576115,0.002,117530.0,117520.0,1.58637764]
[1752370576311,0.58356,117550.0,117540.0,0.2025963]
[1752370576517,0.58356,117550.0,117540.0,1.28038276]
[1752370576722,0.58356,117550.0,117540.0,1.42711099]
[1752370578123,0.58356,117550.0,117540.0,1.42511099]
[1752370578423,0.58656,117550.0,117540.0,1.42511099]
[1752370578621,0.63229,117550.0,117540.0,1.42511099]
[1752370578823,0.63329,117550.0,117540.0,1.17354561]
[1752370579118,0.63029,117550.0,117540.0,1.17354561]
[1752370579424,0.63229,117550.0,117540.0,1.17354561]
[1752370580122,0.8567918,117550.0,117540.0,0.9729263]
[1752370580317,0.8567918,117550.0,117540.0,1.17354561]
[1752370581123,0.8567918,117550.0,117540.0,1.242692]
[1752370581325,0.2732318,117550.0,117540.0,1.242692]
[1752370582123,0.2732318,117550.0,117540.0,1.209112]
[1752370582520,0.2732318,117550.0,117540.0,1.0480157]
[1752370582723,0.2732318,117550.0,117540.0,1.218112]
[1752370583624,0.2732318,117550.0,117540.0,1.251692]
[1752370586527,0.29003106,117550.0,117540.0,1.251692]
[1752370586928,0.2732318,117550.0,117540.0,1.251692]
[1752370588127,0.29002886,117550.0,117540.0,1.251692]
[1752370589431,0.29002886,117550.0,117540.0,1.05107269]
[1752370589631,0.29002886,117550.0,117540.0,1.218112]
[1752370596237,0.29002886,117550.0,117540.0,0.857312]
[1752370597839,0.29002886,117550.0,117540.0,0.78816561]
[1752370598135,0.29002886,117550.0,117540.0,0.5633963]
[1752370598742,0.29002886,117550.0,117540.0,0.76401561]
[1752370599232,0.29002886,117550.0,117540.0,0.5633963]
[1752370603043,0.29002886,117550.0,117540.0,0.5872663]
[1752370603845,0.29002886,117550.0,117540.0,0.2264663]
[1752370604040,0.29002886,117550.0,117540.0,0.5872663]
[1752370604240,0.35076494,117550.0,117540.0,0.56790473]
[1752370610153,0.55138425,117550.0,117540.0,0.3608]
[1752370610952,0.50131161,117550.0,117540.0,0.3608]
[1752370611352,0.44057553,117550.0,117540.0,0.3608]
[1752370611854,0.73201553,117550.0,117540.0,0.5308963]
[1752370612547,0.2018463,117540.0,117530.0,0.85563437]
[1752370612854,0.64483049,117540.0,117530.0,1.26660729]
[1752370613953,0.64483049,117540.0,117530.0,1.26760729]
[1752370614553,0.64483049,117540.0,117530.0,1.22508009]
[1752370614855,0.64483049,117540.0,117530.0,0.50348009]
[1752370615055,0.64483049,117540.0,117530.0,1.22708009]
[1752370615851,0.64483049,117540.0,117530.0,1.0263605]
[1752370616055,0.64483049,117540.0,117530.0,0.77121]
[1752370616449,0.84555008,117540.0,117530.0,0.3638]
[1752370618157,0.78434295,117540.0,117530.0,0.3638]
[1752370618357,0.84552674,117540.0,117530.0,0.3638]
[1752370619356,0.95450295,117540.0,117530.0,0.003]
[1752370619759,0.78434295,117540.0,117530.0,0.003]
[1752370619957,0.8609826,117540.0,117530.0,0.003]
[1752370622860,0.66026301,117540.0,117530.0,0.003]
[1752370623063,0.8609826,117540.0,117530.0,0.003]
[1752370627258,0.78434295,117540.0,117530.0,0.003]
[1752370628060,0.78434295,117540.0,117530.0,0.1731107]
[1752370629163,0.78434295,117540.0,117530.0,0.003]
[1752370629357,0.49290295,117540.0,117530.0,0.1731107]
[1752370629563,0.64471403,117540.0,117530.0,0.73463029]
[1752370629754,0.64471403,117540.0,117530.0,0.78215029]
[1752370630259,0.64471403,117540.0,117530.0,0.5814307]
[1752370633263,0.64471403,117540.0,117530.0,0.2206307]
[1752370633765,0.35331403,117540.0,117530.0,0.2206307]
[1752370634066,0.64471403,117540.0,117530.0,0.5814307]
[1752370636365,0.64471403,117540.0,117530.0,0.2206307]
[1752370636764,0.64471403,117540.0,117530.0,0.5814307]
[1752370638068,0.66022301,117540.0,117530.0,0.5814307]
[1752370638360,0.66022301,117540.0,117530.0,0.51248457]
[1752370638757,0.81078199,117540.0,117530.0,0.66304355]
[1752370639063,0.79398493,117540.0,117530.0,0.66304355]
[1752370639262,0.778515,117540.0,117530.0,0.66304355]
[1752370639666,0.487115,117540.0,117530.0,0.66304355]
[1752370639967,0.778475,117540.0,117530.0,0.66304355]
[1752370640867,0.71730528,117540.0,117530.0,0.66304355]
[1752370641769,0.71730528,117540.0,117530.0,0.61552355]
[1752370642270,0.778475,117540.0,117530.0,0.61552355]
[1752370644170,0.778475,117540.0,117530.0,0.25472355]
[1752370644370,0.778475,117540.0,117530.0,0.61552355]
[1752370644673,0.778475,117540.0,117530.0,0.64030355]
[1752370644875,0.92903398,117540.0,117530.0,0.48974457]
[1752370645075,0.86786426,117540.0,117530.0,0.61552355]
[1752370646676,0.94450391,117540.0,117530.0,0.61552355]
[1752370648171,0.86786426,117540.0,117530.0,0.61552355]
[1752370649173,0.94450391,117540.0,117530.0,0.61552355]
[1752370651882,0.94450391,117540.0,117530.0,0.25472355]
[1752370652080,0.94450391,117540.0,117530.0,0.61552355]
[1752370653078,0.94450391,117540.0,117530.0,0.15055898]
[1752370653380,0.94450391,117540.0,117530.0,0.32066978]
[1752370654179,0.94450391,117540.0,117530.0,0.15055898]
[1752370654373,0.1701107,117530.0,117520.0,0.70796445]
[1752370654580,0.63809005,117530.0,117520.0,0.36250177]
[1752370654777,0.44256481,117530.0,117520.0,0.36250177]
[1752370655680,0.51920446,117530.0,117520.0,0.53362697]
[1752370656276,0.51920446,117530.0,117520.0,0.36350177]
[1752370656676,0.51920446,117530.0,117520.0,0.36550177]
[1752370656882,0.51920446,117530.0,117520.0,0.53562697]
[1752370657082,0.58584681,117530.0,117520.0,0.53562697]
[1752370657383,0.58584681,117530.0,117520.0,0.36550177]
[1752370657776,0.58584681,117530.0,117520.0,0.53562697]
[1752370658177,0.50920716,117530.0,117520.0,0.53562697]
[1752370658376,0.50920716,117530.0,117520.0,0.68618595]
[1752370658580,0.50920716,117530.0,117520.0,0.53562697]
[1752370660077,0.50920716,117530.0,117520.0,0.36550177]
[1752370660678,0.50920716,117530.0,117520.0,0.53562697]
[1752370662683,0.58584681,117530.0,117520.0,0.53562697]
[1752370666492,0.56245681,117530.0,117520.0,0.53562697]
[1752370667593,0.56245681,117530.0,117520.0,0.68618595]
[1752370668593,0.58610681,117530.0,117520.0,0.70989595]
[1752370669095,0.58610681,117530.0,117520.0,0.73263595]
[1752370670894,0.58610681,117530.0,117520.0,0.58207697]
[1752370671090,0.58610681,117530.0,117520.0,0.73263595]
[1752370671588,0.73406481,117530.0,117520.0,1.24399493]
[1752370671789,0.73406481,117530.0,117520.0,1.25820493]
[1752370671994,0.80073322,117530.0,117520.0,1.24399493]
[1752370672188,0.29226583,117530.0,117520.0,1.25820493]
[1752370672390,0.01629513,117530.0,117520.0,1.40876391]
[1752370672588,0.47764583,117530.0,117520.0,1.40876391]
[1752370673094,0.47764583,117530.0,117520.0,1.25820493]
[1752370676396,0.30753513,117530.0,117520.0,1.25820493]
[1752370677800,0.01629513,117530.0,117520.0,1.25820493]
[1752370678099,0.30749513,117530.0,117520.0,1.25820493]
[1752370679701,0.07751743,117530.0,117520.0,1.40876391]
[1752370679997,0.02613743,117530.0,117520.0,1.40876391]
[1752370680200,0.2912,117540.0,117530.0,0.1701108]
[1752370680504,0.40498795,117550.0,117540.0,0.1700963]
[1752370680801,0.69618795,117550.0,117540.0,0.73155747]
[1752370681205,0.69618795,117550.0,117540.0,0.5308963]
[1752370681501,0.69618795,117550.0,117540.0,0.73155747]
[1752370682205,0.40498795,117550.0,117540.0,0.73155747]
[1752370682403,0.72923795,117550.0,117540.0,0.73155747]
[1752370682607,0.6525983,117550.0,117540.0,0.73155747]
[1752370683100,0.6535983,117550.0,117540.0,0.73155747]
[1752370684103,0.6535983,117550.0,117540.0,0.5308963]
[1752370686498,0.6535983,117550.0,117540.0,0.73155747]
[1752370687603,0.6535983,117550.0,117540.0,0.5308963]
[1752370687908,0.73023795,117550.0,117540.0,0.5308963]
[1752370688405,0.6535983,117550.0,117540.0,0.5308963]
[1752370688798,0.85425947,117550.0,117540.0,0.3608]
[1752370689001,0.85425947,117550.0,117540.0,0.5308963]
[1752370689411,0.85425947,117550.0,117540.0,0.3608]
[1752370689912,0.85425947,117550.0,117540.0,0.5308963]
[1752370690125,0.91536721,117550.0,117540.0,0.5308963]
[1752370693115,0.91536721,117550.0,117540.0,0.3608]
[1752370693715,0.2251763,117540.0,117530.0,0.49833577]
[1752370693909,0.2746963,117540.0,117530.0,0.85913577]
[1752370695018,0.2746963,117540.0,117530.0,0.86013577]
[1752370695312,0.2746963,117540.0,117530.0,0.6169477]
[1752370695515,0.2746963,117540.0,117530.0,0.81760887]
[1752370697516,0.2439163,117540.0,117530.0,0.81760887]
[1752370698016,0.5349963,117540.0,117530.0,0.81760887]
[1752370698209,0.2439163,117540.0,117530.0,0.81760887]
[1752370698711,0.5349963,117540.0,117530.0,0.81760887]
[1752370698915,0.2439163,117540.0,117530.0,0.81760887]
[1752370699311,0.5349563,117540.0,117530.0,0.81760887]
[1752370700318,0.5349563,117540.0,117530.0,0.45680887]
[1752370700517,0.5349563,117540.0,117530.0,1.17840887]
[1752370701116,0.5349563,117540.0,117530.0,0.45680887]
[1752370701319,0.5349563,117540.0,117530.0,1.17840887]
[1752370702821,0.5349563,117540.0,117530.0,1.2787777]
[1752370704021,0.5657363,117540.0,117530.0,1.2787777]
[1752370706122,0.62684404,117540.0,117530.0,1.2787777]
[1752370706424,0.62684404,117540.0,117530.0,1.1282627]
[1752370707023,0.62684404,117540.0,117530.0,0.9777477]
[1752370707222,0.62684404,117540.0,117530.0,1.1282627]
[1752370707423,0.5657363,117540.0,117530.0,1.1282627]
[1752370715330,0.62684404,117540.0,117530.0,1.1282627]
[1752370715827,0.5657363,117540.0,117530.0,1.1282627]
[1752370716132,0.62684404,117540.0,117530.0,1.1282627]
[1752370720235,0.62684404,117540.0,117530.0,1.2787777]
[1752370720435,0.33580404,117540.0,117530.0,1.2787777]
[1752370721034,0.36478,117540.0,117530.0,1.2787777]
[1752370722038,0.07382,117540.0,117530.0,1.2787777]
[1752370722237,0.36478,117540.0,117530.0,1.2787777]
[1752370723940,0.5348763,117540.0,117530.0,1.2787777]
[1752370724439,0.36478,117540.0,117530.0,1.2787777]
[1752370725139,0.5348763,117540.0,117530.0,1.2787777]
[1752370726439,0.2439163,117540.0,117530.0,1.2787777]
[1752370726640,0.5348363,117540.0,117530.0,1.2787777]
[1752370726842,0.07382,117540.0,117530.0,1.2787777]
[1752370727040,0.36474,117540.0,117530.0,1.2787777]
[1752370728141,0.59594404,117540.0,117530.0,1.2787777]
[1752370729145,0.42584774,117540.0,117530.0,1.2787777]
[1752370729436,0.13492774,117540.0,117530.0,1.2787777]
[1752370729642,0.35202774,117540.0,117530.0,1.2787777]
[1752370729842,0.06110774,117540.0,117530.0,1.2787777]
[1752370732444,0.63709224,117550.0,117540.0,0.1700963]
[1752370732746,0.63709224,117550.0,117540.0,0.8319263]
[1752370733046,0.6085645,117550.0,117540.0,0.8319263]
[1752370733439,0.66978734,117550.0,117540.0,0.8319263]
[1752370733742,0.62451582,117550.0,117540.0,0.8319263]
[1752370734043,0.62551582,117550.0,117540.0,0.8319263]
[1752370734739,0.33459582,117550.0,117540.0,0.8319263]
[1752370734935,0.62547582,117550.0,117540.0,0.8319263]
[1752370735349,0.68669131,117550.0,117540.0,0.8319263]
[1752370735646,0.64417081,117550.0,117540.0,0.8319263]
[1752370737051,0.47407681,117550.0,117540.0,0.8319263]
[1752370737848,0.64415861,117550.0,117540.0,0.8319263]
[1752370738151,0.58294312,117550.0,117540.0,0.8319263]
[1752370739143,0.41286132,117550.0,117540.0,0.8319263]
[1752370739649,0.58294312,117550.0,117540.0,0.8319263]
[1752370739948,0.41282132,117550.0,117540.0,0.8319263]
[1752370740337,0.12198132,117550.0,117540.0,0.8319263]
[1752370740540,0.01695132,117550.0,117540.0,0.9824413]
[1752370740943,0.01695132,117550.0,117540.0,1.2732813]
[1752370743847,0.48160259,117570.0,117560.0,0.1700674]
[1752370743848,0.06321549,117570.0,117560.0,0.1700674]
[1752370744043,0.06321549,117570.0,117560.0,1.3432124]
[1752370744247,0.06321549,117570.0,117560.0,1.8041324]
[1752370744441,0.07245,117600.0,117590.0,0.255036]
[1752370744642,0.32538,117610.0,117600.0,0.1700095]
[1752370744848,0.64446475,117610.0,117600.0,0.8318395]
[1752370745150,0.35366475,117610.0,117600.0,0.8298395]
[1752370745349,0.35366475,117610.0,117600.0,0.8278395]
[1752370745542,0.4275401,117610.0,117600.0,0.5268095]
[1752370745750,0.7203401,117610.0,117600.0,0.6773245]
[1752370745942,0.4295401,117610.0,117600.0,0.6773245]
[1752370746142,0.79697975,117610.0,117600.0,0.3608]
[1752370746344,0.94749475,117610.0,117600.0,0.3608]
[1752370746551,0.79697975,117610.0,117600.0,0.3608]
[1752370746747,0.7203401,117610.0,117600.0,0.3608]
[1752370746952,0.87749008,117610.0,117600.0,0.3608]
[1752370747151,0.88149008,117610.0,117600.0,0.3608]
[1752370747451,0.77236607,117610.0,117600.0,0.3608]
[1752370747752,0.84870936,117610.0,117600.0,0.3608]
[1752370748056,0.95583337,117610.0,117600.0,0.5308095]
[1752370748352,0.87949008,117610.0,117600.0,0.3608]
[1752370749053,0.87949008,117610.0,117600.0,0.5308095]
[1752370749654,0.5718251,117610.0,117600.0,0.5308095]
[1752370749955,0.64805486,117610.0,117600.0,0.73135047]
[1752370750251,0.64505486,117610.0,117600.0,0.73135047]
[1752370751456,0.5687451,117610.0,117600.0,0.73135047]
[1752370752156,0.2780251,117610.0,117600.0,0.73135047]
[1752370752356,0.5687451,117610.0,117600.0,0.73135047]
[1752370754257,0.2780251,117610.0,117600.0,0.73135047]
[1752370754455,0.5687051,117610.0,117600.0,0.73135047]
[1752370756157,0.36613,117610.0,117600.0,0.93189144]
[1752370756364,0.2454452,117610.0,117600.0,0.73135047]
[1752370758256,0.2444452,117610.0,117600.0,0.73135047]
[1752370758558,0.07545,117610.0,117600.0,0.73135047]
[1752370759562,0.2454452,117610.0,117600.0,0.73135047]
[1752370760753,0.07545,117610.0,117600.0,0.73135047]
[1752370760953,0.2454452,117610.0,117600.0,0.73135047]
[1752370762660,0.2778152,117610.0,117600.0,0.73135047]
[1752370762862,0.10782,117610.0,117600.0,0.93189144]
[1752370763361,0.07545,117610.0,117600.0,0.93189144]
[1752370763560,0.07545,117610.0,117600.0,0.73135047]
[1752370764061,0.2454452,117610.0,117600.0,0.73135047]
[1752370764862,0.2778152,117610.0,117600.0,0.5308095]
[1752370765055,0.2778152,117610.0,117600.0,0.73135047]
[1752370765863,0.29387505,117610.0,117600.0,0.3608]
[1752370766163,0.29387505,117610.0,117600.0,0.5308096]
[1752370766562,0.29387505,117610.0,117600.0,0.73135057]
[1752370769466,0.29387505,117610.0,117600.0,0.5308096]
[1752370769863,0.49441602,117610.0,117600.0,0.5308096]
[1752370770764,0.29387505,117610.0,117600.0,0.5308096]
[1752370771563,0.35477163,117610.0,117600.0,0.5308096]
[1752370771764,0.64893163,117610.0,117600.0,0.5308096]
[1752370771962,0.58803505,117610.0,117600.0,0.5308096]
[1752370772267,0.58803505,117610.0,117600.0,0.73135057]
[1752370772268,0.29387505,117610.0,117600.0,0.73135057]
[1752370772568,0.64905163,117610.0,117600.0,0.73135057]
[1752370772768,0.58819505,117610.0,117600.0,0.73135057]
[1752370772974,0.58823505,117610.0,117600.0,0.73135057]
[1752370775766,0.29387505,117610.0,117600.0,0.73135057]
[1752370775971,0.58823505,117610.0,117600.0,0.73135057]
[1752370776475,0.58823505,117610.0,117600.0,1.09215057]
[1752370778170,0.64913163,117610.0,117600.0,1.09215057]
[1752370779574,0.64913163,117610.0,117600.0,0.73135057]
[1752370780177,0.64905163,117610.0,117600.0,0.73135057]
[1752370780571,0.58815505,117610.0,117600.0,0.73135057]
[1752370780772,0.29387505,117610.0,117600.0,0.73135057]
[1752370780971,0.6493227,117610.0,117600.0,0.73135057]
[1752370781375,0.58815505,117610.0,117600.0,0.73135057]